Workbook

Sheet K
A2: ALOITTAVAN TÄYSIHOITO/VALMENNUSTALLIN TILINPÄÄTÖSTEN ENNAKOINTI VIIDELLE VUODELLE
A4: Tällä laskentamallilla voit helposti laatia perustettavalle uudelle täysihoito- tai valmennustallille alustavan taloudellisen laskelman viiden ensimmäisen vuoden toiminnasta. Syötä laskentaa varten malliin ensin tiedot tallille hankittavasta omaisuudesta, yrityksesi veroprosentista, otettavien velkojen korosta ja laina-ajan pituudesta, sinun voitto-osuudestasi, rahoitusomaisuuden riittävästä määrästä sekä arvioi liikevaihdon ja kiinteiden kulujen kasvuprosentit. Syötä tämän jälkeen tallisi ensimmäiselle toimintavuodelle ennakoimasi tulot ja kulut, investoinnit ja rahoitus. Tässä laskentamallissa ei oteta huomioon arvonlisäveroa.
A6: Taulukossa on valmiina esimerkkinä kuvitteellisen täysihoito/valmennustallin luvut. Tässä omissa tiloissa toimivassa tallissa on pelkästään täysihoidossa 10 hevosta ja täysihoito/valmennuksessa 10 hevosta. Talli rahoittaa aloittavan toimintansa lyhytaikaisella ja pitkäaikaisella velalla ja omalla pääomalla. Muuta taulukon vihreissä ruuduissa olevat tallin esimerkkiluvut oman tallisi arvioiduiksi luvuiksi. Pohdi antamiasi lukuja mahdollisimman huolellisesti.
A8: Syötä ensin laskelmissa käytettävät lukuarvot pitkäaikaisen omaisuuden käyttöajoille, verolle ja muille tekijöille:
A9: Pitkäaikaisen omaisuuden keskimääräinen käyttöaika: | F9: Käyttöaika vuosina | G9: Poisto-osuus
A10: Miten monta vuotta arvioit hankkimiesi rakennusten ja rakennelmien (esim. maneesi, talli, harjoitusravirata, tarhat) toimivan tallin käytössä? | F10: 15 | G10: =1/F10 -> 0.06666666667
A11: Miten monta vuotta arvioit hankkimiesi koneiden ja kaluston (esim. traktori, lana, pienkuormaaja) toimivan talli käytössä? | F11: 4 | G11: =1/F11 -> 0.25
A12: Miten pitkäaikaiseen käyttöön hankkimasi aineeton käyttöomaisuus (esim. tietokoneohjelmat) on tarkoitettu? | F12: 5 | G12: =1/F12 -> 0.2
A13: Miten pitkäaikaiseen käyttöön hankkimasi muu käyttöomaisuus (esim. työkalut, muu irtaimisto) on tarkoitettu? | F13: 2 | G13: =1/F13 -> 0.5
A15: Muut tiedot: | F15: Muut tiedot | G15: %-osuus
A16: Kuinka monta prosenttia yrityksesi maksaa veroja verotettavasta tuloksesta? (esim. osakeyhtiöillä verokanta on 20 % 2021) | F16: 20 | G16: =+F16/100 -> 0.2
A17: Miten suureksi arvioit yrityksellesi mahdollisesti ottamasi lyhytaikaisen (alle vuoden mittaisen) velan vuotuisen korkoprosentin? | F17: 3 | G17: =+F17/100 -> 0.03
A18: Miten suureksi arvioit yrityksellesi mahdollisesti ottamasi pitkäaikaisen (yli vuoden mittaisen) velan vuotuisen korkoprosentin? | F18: 2 | G18: =+F18/100 -> 0.02
A19: Miten monta vuotta pitkäaikaista velkaa maksetaan takaisin? (mallissa oletetaan yhtä suuret vuosittaiset lyhennykset) | F19: 5 | G19: 5
A20: Miten paljon aiot nostaa yrityksestä voitto-osuutta (esim. osinkoja) prosentteina yrityksen tuottamista kertyneistä voitoista? (huomaa, että talliyrittäjän korvaus syntyy voitto-osuudesta ja myös tallille jäävästä nettovoitosta, ei palkasta) | F20: 5 | G20: =+F20/100 -> 0.05
A21: Miten paljon vähintään aiot pitää rahaa kassassa ja pankkitilillä toiminnan pyörittämistä varten prosentteina liikevaihdosta? | F21: 5 | G21: =+F21/100 -> 0.05
A22: Miten monta prosenttia arvioit yrityksesi liikevaihdon kasvavan vuosittain viiden vuoden aikana? | F22: 5 | G22: =+F22/100 -> 0.05
A23: Miten monta prosenttia arvioit yrityksesi kiinteiden kustannusten kasvavan vuosittain viiden vuoden aikana? | F23: 3 | G23: =+F23/100 -> 0.03
A25: Laadi sen jälkeen arvio täysihoito/valmennustallisi ensimmäisen vuoden liikevaihdosta.
A27: Minkä hintaiseksi arvioit pelkän täysihoitopaikan hinnan hevosta kohti kuukaudessa? (euroa / hevonen / kuukausi) | F27: 500 | G27: euroa / kk | H27: =+IF(F27<0,"Luvun pitää olla positiivinen","") -> 
A28: Kuinka monta hevosta sinulla on tarkoitus ottaa pelkälle täysihoitopaikalle? | F28: 10 | G28: hevosta | H28: =+IF(F28<0,"Luvun pitää olla positiivinen","") -> 
A29: Millaiseksi arvioit tallin käyttöasteen pelkissä täysihoitopaikoissa keskimäärin prosentteina 0 - 100 % (täysi talli)? | F29: 90 | G29: % | H29: =+IF(F29<0,"Luvun pitää olla positiivinen",IF(F29>100,"Luvun pitää olla alle 100","")) -> 
A30: Minkä hintaiseksi arvioit täysihoito- ja valmennuspaikan hinnan hevosta kohti kuukaudessa? (euroa / hevonen / kuukausi) | F30: 950 | G30: euroa / kk | H30: =+IF(F30<0,"Luvun pitää olla positiivinen","") -> 
A31: Kuinka monta hevosta sinulla on tarkoitus ottaa täysihoito/valmennuspaikalle? | F31: 10 | G31: hevosta | H31: =+IF(F31<0,"Luvun pitää olla positiivinen","") -> 
A32: Millaiseksi arvioit tallin käyttöasteen täysihoito/valmennuspaikoissa keskimäärin prosentteina 0 - 100 % (täysi talli)? | F32: 90 | G32: % | H32: =+IF(F32<0,"Luvun pitää olla positiivinen",IF(F32>100,"Luvun pitää olla alle 100","")) -> 
A33: Esittämiesi lukujen perusteella ensimmäisen vuoden liikevaihto on siten seuraava: | F33: =12*F27*F28*F29/100+12*F30*F31*F32/100 -> 156600 | G33: euroa
A35: Täysihoito/valmennustallisi ensimmäisen vuoden ennakoitu liikevaihto on: | F35: =+F33 -> 156600 | G35: euroa
A36: Täysihoidossa on keskimäärin hevosia käyttöaste huomioiden: | F36: =+F28*F29/100 -> 9 | G36: hevosta
A37: Valmennuksessa on keskimäärin hevosia käyttäaste huomioiden: | F37: =+F31*F32/100 -> 9 | G37: hevosta
A38: Hevosia on tallissasi keskimäärin yhteensä käyttöaste huomioiden: | F38: =+F36+F37 -> 18 | G38: hevosta
A40: Laadi sitten arvio yrityksen kulujen määrästä.
A42: Muuttuvat kulut:
A43: Millaisiksi arvioit ensimmäisen vuoden muuttuvat kulut, jotka riippuvat suoraan hevosten määrästä? | F43: Vuodessa: | G43: Liikevaih-dosta, %
A44: Miten paljon kulut karkearehusta ovat hevosta kohti kuukaudessa (euroa / hevonen / kuukausi)? | E44: 100 | F44: =+E44*12*$F$38 -> 21600 | G44: =100*F44/$F$35 -> 13.79310345 | H44: =+IF(E44<0,"Kulujen määrä ei saa olla negatiivinen","") -> 
A45: Miten paljon kulut väkirehusta ovat hevosta kohti kuukaudessa (euroa / hevonen / kuukausi)? | E45: 20 | F45: =+E45*12*$F$38 -> 4320 | G45: 2.75862069 | H45: =+IF(E45<0,"Kulujen määrä ei saa olla negatiivinen","") -> 
A46: Miten paljon kulut kivennäisistä ovat hevosta kohti kuukaudessa (euroa / hevonen / kuukausi)? | E46: 40 | F46: 8640 | G46: 5.517241379
A47: Miten paljon muut ruokintakulut ovat hevosta kohti kuukaudessa (euroa / hevonen / kuukausi)? | E47: 40 | F47: 8640 | G47: 5.517241379
A48: Miten paljon kuivikekulut ovat hevosta kohti kuukaudessa (euroa / hevonen / kuukausi)? | E48: 50 | F48: 10800 | G48: 6.896551724
A49: Miten suuriksi arvioit täysihoidon muuttuvat palkat (esim. hoitaja) lisineen hevosta kohti kuukaudessa? (euroa / hevonen / kuukausi) (älä laita tähän talliyrittäjän palkkaa) | E49: 100 | F49: =+F38*E49*12 -> 21600 | G49: 13.79310345
A50: Miten suuriksi arvioit valmennuksen muuttuvat palkat (esim. valmentaja) lisineen hevosta kohti kuukaudessa? (euroa / hevonen / kuukausi) (älä laita tähän talliyrittäjän palkkaa) | E50: 300 | F50: =+F37*E50*12 -> 32400 | G50: 20.68965517
A51: Miten paljon muut muuttuvat kulut (esim. talikot, siivoustarvikkeet) ovat hevosta kohti vuodessa (euroa / hevonen / vuosi)? | E51: 50 | F51: =+E51*$F$38 -> 900 | G51: 0.5747126437
A52: Ensimmäisen vuoden ennakoitu myyntikate (liikevaihto - muuttuvat kulut) on: | F52: =+F35-SUM(F44:F51) -> 47700 | G52: 30.45977011
A54: Kiinteät kulut: | D54: =+IF(B54<0," Huom! Luvun pitää olla positiivinen tai nolla!","") -> 
A55: Millaisiksi arvioit ensimmäisen vuoden kiinteät kulut?
A56: Kuinka paljon arvioit vuokrakuluiksi kuukaudessa käyttämistäsi tiloista? (euroa / kuukausi) (jos vuokratiloja) | E56: 0 | F56: =12*E56 -> 0 | G56: =100*F56/$F$35 -> 0 | H56: =+IF(E56<0,"Kulujen määrä ei saa olla negatiivinen","") -> 
A57: Kuinka paljon arvioit sähkön kulutuksen kuluiksi kuukaudessa? (euroa / kuukausi) | E57: 200 | F57: =12*E57 -> 2400 | G57: 1.53256705
A58: Kuinka paljon arvioit veden kulutuksen kuluiksi kuukaudessa? (euroa / kuukausi) | E58: 100 | F58: 1200 | G58: 0.7662835249
A59: Kuinka paljon arvioit pohjien huollon kuluiksi kuukaudessa (maneesi, ratsastuskenttä, rata)? (euroa / kuukausi) | E59: 250 | F59: 3000 | G59: 1.915708812
A60: Kuinka paljon arvioit lantalan tyhjennyksen kuluiksi kuukaudessa? (euroa / kuukausi) | E60: 100 | F60: 1200 | G60: 0.7662835249
A61: Kuinka suuriksi arvioit kiinteät palkkakustannukset lisineen (esim. tallityöntekijät, kirjanpitäjä) kuukaudessa? (älä laita tähän talliyrittäjän palkkaa) | E61: 1000 | F61: 12000 | G61: 7.662835249
A62: Kuinka suuriksi arvioit muut edellä mainitsemattomat kiinteät kulut kuukaudessa? (euroa / kuukausi) | E62: 100 | F62: 1200 | G62: 0.7662835249
A64: Ensimmäisen vuoden ennakoitu käyttökate (liikevaihto - muuttuvat kulut - kiinteät kulut) on: | F64: =+F52-SUM(F56:F62) -> 26700 | G64: 17.04980843
A66: Esittämiesi lukujen perusteella arvioit ensimmäisen vuoden kuluiksi yhteensä: | F66: =+SUM(F44:F51)+SUM(F56:F62) -> 129900 | G66: 82.95019157
A67: =+IF(F67>0,"Liikevaihdon ja muuttuvien kulujen erotus (myyntikate) on:","Muuta antamiasi tietoja, sillä liikevaihdon ja muuttuvien kulujen erotus on negatiivinen:") -> Liikevaihdon ja muuttuvien kulujen erotus (myyntikate) on: | F67: =+F52 -> 47700 | G67: 30.45977011
A68: =+IF(F68>0,"Liikevaihdon ja muuttuvien ja kiinteiden kulujen erotus (käyttökate) on:","Muuta antamiasi tietoja, sillä liikevaihdon ja kulujen erotus (käyttökate) on negatiivinen:") -> Liikevaihdon ja muuttuvien ja kiinteiden kulujen erotus (käyttökate) on: | F68: =+F64 -> 26700 | G68: 17.04980843
A70: Investoinnit (pitkäaikaiset sijoitukset) täysihoito/valmennustalliin:
A71: Miten paljon aiot investoida euroissa talliin ensimmäisenä vuonna, kun pitkäaikainen omaisuus hankitaan?
A72: Miten paljon aiot sijoittaa euroja maa- ja vesialueisiin? (esim. tontin ostamiseen) | F72: 40000 | G72: =100*F72/$F$35 -> 25.54278416 | H72: =+IF(F72<0,"Investoitu määrä ei saa olla negatiivinen","") -> 
A73: Miten paljon aiot sijoittaa euroja rakennuksiin ja rakennelmiin? (esim. maneesi, talli, harjoitusravirata, tarhat) | F73: 200000 | G73: 127.7139208
A74: Miten paljon aiot sijoittaa euroja koneisiin ja kalustoon (esim. traktori, lana, pienkuormaaja)? | F74: 50000 | G74: 31.9284802
A75: Miten paljon aiot sijoittaa euroja aineettomaan käyttöomaisuuteen (esim. tietokoneohjelmat)? | F75: 1000 | G75: 0.6385696041
A76: Miten paljon aiot sijoittaa euroja muuhun käyttöomaisuuteen (esim. työkalut, muu irtaimisto)? | F76: 1000 | G76: 0.6385696041
A77: Esittämiesi lukujen perusteella sijoitat euroja yrityksesi omaisuuteen yhteensä: | F77: =+SUM(F72:F76) -> 292000 | G77: 186.4623244
A79: Täysihoito/valmennustallisi toiminnan rahoitus:
A80: Millä tavalla aiot rahoittaa tallin ensimmäisen toimintavuoden investoinnit ja toiminnan?
A81: Miten paljon aiot ottaa lyhytaikaista velkaa toimintaa varten? (euroja) | D81: =+IF(C81<0," Huom! Luvun pitää olla positiivinen tai nolla!","") ->  | F81: 20000 | G81: euroa | H81: =+IF(F81<0,"Rahoituksen määrä ei saa olla negatiivinen","") -> 
A82: Miten paljon aiot ottaa pitkäaikaista velkaa investointien rahoittamista varten? (euroja) | D82: =+IF(C82<0," Huom! Luvun pitää olla positiivinen tai nolla!","") ->  | F82: 270000 | G82: euroa | H82: =+IF(F82<0,"Rahoituksen määrä ei saa olla negatiivinen","") -> 
A83: Miten paljon aiot sijoittaa toimintaan omaa pääomaa? (euroja) | F83: 10000 | G83: euroa
A84: Esittämiesi lukujen perusteella otat ensimmäisenä vuonna velkaa ja sijoitat omaa pääomaa yritykseesi yhteensä: | F84: =+SUM(F81:F83) -> 300000 | G84: euroa
A86: Sijoittamasi oman pääoman osuus rahoituksesta ilman toiminnan tuottamaa tulorahoitusta on: | F86: =100*F83/F84 -> 3.333333333 | G86: %
A87: Sijoitetun oman pääoman ja pitkäaikaisen velan osuus investointien rahoituksesta on: | F87: =100*(F82+F83)/F77 -> 95.89041096 | G87: %
A90: MALLIN TUOTTAMAT TILINPÄÄTÖSLASKELMAT VIIDELLE VUODELLE
A92: =+T!B3 -> ENNAKOITU TULOSLASKELMA
B93: =+T!C4 -> Ennakoidut viisi vuotta:
B94: =+T!C5 -> 1 | C94: =+T!D5 -> 2 | D94: =+T!E5 -> 3 | E94: =+T!F5 -> 4 | F94: =+T!G5 -> 5
A95: =+T!B6 -> Liikevaihto | B95: =+T!C6 -> 156600 | C95: =+T!D6 -> 164430 | D95: =+T!E6 -> 172651.5 | E95: =+T!F6 -> 181284.075 | F95: =+T!G6 -> 190348.2787
A96: =+T!B7 -> - Muuttuvat kulut
A97: =+T!B8 -> Karkearehu | B97: =+T!C8 -> 21600 | C97: =+T!D8 -> 22680 | D97: =+T!E8 -> 23814 | E97: =+T!F8 -> 25004.7 | F97: =+T!G8 -> 26254.935
A98: =+T!B9 -> Väkirehu | B98: =+T!C9 -> 4320 | C98: =+T!D9 -> 4536 | D98: =+T!E9 -> 4762.8 | E98: =+T!F9 -> 5000.94 | F98: =+T!G9 -> 5250.987
A99: =+T!B10 -> Kivennäiset | B99: =+T!C10 -> 8640 | C99: =+T!D10 -> 9072 | D99: =+T!E10 -> 9525.6 | E99: =+T!F10 -> 10001.88 | F99: =+T!G10 -> 10501.974
A100: =+T!B11 -> Muut ruokintakustannukset | B100: =+T!C11 -> 8640 | C100: =+T!D11 -> 9072 | D100: =+T!E11 -> 9525.6 | E100: =+T!F11 -> 10001.88 | F100: =+T!G11 -> 10501.974
A101: =+T!B12 -> Kuivikekustannukset | B101: =+T!C12 -> 10800 | C101: =+T!D12 -> 11340 | D101: =+T!E12 -> 11907 | E101: =+T!F12 -> 12502.35 | F101: =+T!G12 -> 13127.4675
A102: =+T!B13 -> Täyshoidon muuttuvat palkat lisineen | B102: =+T!C13 -> 21600 | C102: =+T!D13 -> 22680 | D102: =+T!E13 -> 23814 | E102: =+T!F13 -> 25004.7 | F102: =+T!G13 -> 26254.935
A103: =+T!B14 -> Valmennuksen muuttuvat palkat lisineen | B103: =+T!C14 -> 32400 | C103: =+T!D14 -> 34020 | D103: =+T!E14 -> 35721 | E103: =+T!F14 -> 37507.05 | F103: =+T!G14 -> 39382.4025
A104: =+T!B15 -> Muut muuttuvat kulut | B104: =+T!C15 -> 900 | C104: =+T!D15 -> 945 | D104: =+T!E15 -> 992.25 | E104: =+T!F15 -> 1041.8625 | F104: =+T!G15 -> 1093.955625
A105: =+T!B16 -> = Myyntikate | B105: =+T!C16 -> 47700 | C105: =+T!D16 -> 50085 | D105: =+T!E16 -> 52589.25 | E105: =+T!F16 -> 55218.7125 | F105: =+T!G16 -> 57979.64813
A106: =+T!B17 -> - Kiinteät kulut
A107: =+T!B18 -> Vuokrakulut | B107: =+T!C18 -> 0 | C107: =+T!D18 -> 0 | D107: =+T!E18 -> 0 | E107: =+T!F18 -> 0 | F107: =+T!G18 -> 0
A108: =+T!B19 -> Sähkökulut | B108: =+T!C19 -> 2400 | C108: =+T!D19 -> 2472 | D108: =+T!E19 -> 2546.16 | E108: =+T!F19 -> 2622.5448 | F108: =+T!G19 -> 2701.221144
A109: =+T!B20 -> Vesikulut | B109: =+T!C20 -> 1200 | C109: =+T!D20 -> 1236 | D109: =+T!E20 -> 1273.08 | E109: =+T!F20 -> 1311.2724 | F109: =+T!G20 -> 1350.610572
A110: =+T!B21 -> Pohjien huolto | B110: =+T!C21 -> 3000 | C110: =+T!D21 -> 3090 | D110: =+T!E21 -> 3182.7 | E110: =+T!F21 -> 3278.181 | F110: =+T!G21 -> 3376.52643
A111: =+T!B22 -> Lantalan tyhjennys | B111: =+T!C22 -> 1200 | C111: =+T!D22 -> 1236 | D111: =+T!E22 -> 1273.08 | E111: =+T!F22 -> 1311.2724 | F111: =+T!G22 -> 1350.610572
A112: =+T!B23 -> Kiinteät palkkakustannukset lisineen | B112: =+T!C23 -> 12000 | C112: =+T!D23 -> 12360 | D112: =+T!E23 -> 12730.8 | E112: =+T!F23 -> 13112.724 | F112: =+T!G23 -> 13506.10572
A113: =+T!B25 -> = Käyttökate | B113: =+T!C25 -> 26700 | C113: =+T!D25 -> 28455 | D113: =+T!E25 -> 30310.35 | E113: =+T!F25 -> 32271.4455 | F113: =+T!G25 -> 34343.96312
A114: =+T!B26 -> - Poistot
A115: =+T!B27 -> Maa- ja vesialueet | B115: =+T!C27 -> 0 | C115: =+T!D27 -> 0 | D115: =+T!E27 -> 0 | E115: =+T!F27 -> 0 | F115: =+T!G27 -> 0
A116: =+T!B28 -> Rakennukset ja rakennelmat | B116: =+T!C28 -> 13333.33333 | C116: =+T!D28 -> 13333.33333 | D116: =+T!E28 -> 13333.33333 | E116: =+T!F28 -> 13333.33333 | F116: =+T!G28 -> 13333.33333
A117: =+T!B29 -> Koneet ja kalusto | B117: =+T!C29 -> 12500 | C117: =+T!D29 -> 12500 | D117: =+T!E29 -> 12500 | E117: =+T!F29 -> 12500 | F117: =+T!G29 -> 0
A118: =+T!B30 -> Aineeton käyttöomaisuus | B118: =+T!C30 -> 200 | C118: =+T!D30 -> 200 | D118: =+T!E30 -> 200 | E118: =+T!F30 -> 200 | F118: =+T!G30 -> 200
A119: =+T!B31 -> Muu käyttöomaisuus | B119: =+T!C31 -> 500 | C119: =+T!D31 -> 500 | D119: =+T!E31 -> 0 | E119: =+T!F31 -> 0 | F119: =+T!G31 -> 0
A120: =+T!B32 -> = Liiketulos | B120: =+T!C32 -> 166.6666667 | C120: =+T!D32 -> 1921.666667 | D120: =+T!E32 -> 4277.016667 | E120: =+T!F32 -> 6238.112167 | F120: =+T!G32 -> 20810.62978
A121: =+T!B33 -> - Korkokulut | B121: =+T!C33 -> 6000 | C121: =+T!D33 -> 6000 | D121: =+T!E33 -> 5251.995 | E121: =+T!F33 -> 5052.5766 | F121: =+T!G33 -> 4796.072609
A122: =+T!B34 -> - Verot | B122: =+T!C34 -> 0 | C122: =+T!D34 -> 0 | D122: =+T!E34 -> 0 | E122: =+T!F34 -> 237.1071133 | F122: =+T!G34 -> 3202.911435
A123: =+T!B35 -> Tilikauden tulos | B123: =+T!C35 -> -5833.333333 | C123: =+T!D35 -> -4078.333333 | D123: =+T!E35 -> -974.9783333 | E123: =+T!F35 -> 948.4284533 | F123: =+T!G35 -> 12811.64574
A125: =+T!B37 -> ENNAKOITU TASE
B126: =+T!C38 -> Ennakoidut viisi vuotta:
B127: =+T!C39 -> 1 | C127: =+T!D39 -> 2 | D127: =+T!E39 -> 3 | E127: =+T!F39 -> 4 | F127: =+T!G39 -> 5
A128: =+T!B40 -> Taseen omaisuus
A129: =+T!B41 -> Lyhytaikainen:
A130: =+T!B42 -> Rahoitusomaisuus | B130: =+T!C42 -> 28700 | C130: =+T!D42 -> 8221.5 | D130: =+T!E42 -> 8632.575 | E130: =+T!F42 -> 9064.20375 | F130: =+T!G42 -> 9517.413937
A131: =+T!B43 -> Pitkäaikainen:
A132: =+T!B44 -> Maa- ja vesialueet | B132: =+T!C44 -> 40000 | C132: =+T!D44 -> 40000 | D132: =+T!E44 -> 40000 | E132: =+T!F44 -> 40000 | F132: =+T!G44 -> 40000
A133: =+T!B45 -> Rakennukset ja rakennelmat | B133: =+T!C45 -> 186666.6667 | C133: =+T!D45 -> 173333.3333 | D133: =+T!E45 -> 160000 | E133: =+T!F45 -> 146666.6667 | F133: =+T!G45 -> 133333.3333
A134: =+T!B46 -> Koneet ja kalusto | B134: =+T!C46 -> 37500 | C134: =+T!D46 -> 25000 | D134: =+T!E46 -> 12500 | E134: =+T!F46 -> 0 | F134: =+T!G46 -> 0
A135: =+T!B47 -> Aineeton käyttöomaisuus | B135: =+T!C47 -> 800 | C135: =+T!D47 -> 600 | D135: =+T!E47 -> 400 | E135: =+T!F47 -> 200 | F135: =+T!G47 -> 0
A136: =+T!B48 -> Muu käyttöomaisuus | B136: =+T!C48 -> 500 | C136: =+T!D48 -> 0 | D136: =+T!E48 -> 0 | E136: =+T!F48 -> 0 | F136: =+T!G48 -> 0
A137: =+T!B49 -> Yhteensä | B137: =+T!C49 -> 294166.6667 | C137: =+T!D49 -> 247154.8333 | D137: =+T!E49 -> 221532.575 | E137: =+T!F49 -> 195930.8704 | F137: =+T!G49 -> 182850.7473
A139: =+T!B51 -> Taseen pääoma
A140: =+T!B52 -> Lyhytaikainen:
A141: =+T!B53 -> Lyhytaikaiset velat (maks. voitto-osuus) | B141: =+T!C53 -> 0 | C141: =+T!D53 -> 0 | D141: =+T!E53 -> 0 | E141: =+T!F53 -> 0 | F141: =+T!G53 -> 143.6714596
A142: =+T!B54 -> Muu lyhytaikainen vieras pääoma | B142: =+T!C54 -> 20000 | C142: =+T!D54 -> 31066.5 | D142: =+T!E54 -> 60419.22 | E142: =+T!F54 -> 87869.08696 | F142: =+T!G54 -> 115977.3181
A143: =+T!B55 -> Pitkäaikainen:
A144: =+T!B56 -> Pitkäaikainen vieras pääoma | B144: =+T!C56 -> 270000 | C144: =+T!D56 -> 216000 | D144: =+T!E56 -> 162000 | E144: =+T!F56 -> 108000 | F144: =+T!G56 -> 54000
A145: =+T!B57 -> Sijoitettu oma pääoma | B145: =+T!C57 -> 10000 | C145: =+T!D57 -> 10000 | D145: =+T!E57 -> 10000 | E145: =+T!F57 -> 10000 | F145: =+T!G57 -> 10000
A146: =+T!B58 -> Kertyneet voittovarat ja muu oma pääoma | B146: =+T!C58 -> -5833.333333 | C146: =+T!D58 -> -9911.666667 | D146: =+T!E58 -> -10886.645 | E146: =+T!F58 -> -9938.216547 | F146: =+T!G58 -> 2729.757732
A147: =+T!B59 -> Yhteensä | B147: =+T!C59 -> 294166.6667 | C147: =+T!D59 -> 247154.8333 | D147: =+T!E59 -> 221532.575 | E147: =+T!F59 -> 195930.8704 | F147: =+T!G59 -> 182850.7473
A149: =+T!B61 -> ENNAKOIDUT TUNNUSLUVUT
B150: =+T!C62 -> Ennakoidut viisi vuotta:
B151: =+T!C63 -> 1 | C151: =+T!D63 -> 2 | D151: =+T!E63 -> 3 | E151: =+T!F63 -> 4 | F151: =+T!G63 -> 5
A152: =+T!B64 -> Koko
A153: =+T!B65 -> 1. Liikevaihto (Euro) | B153: =+T!C65 -> 156600 | C153: =+T!D65 -> 164430 | D153: =+T!E65 -> 172651.5 | E153: =+T!F65 -> 181284.075 | F153: =+T!G65 -> 190348.2787
A154: =+T!B66 -> 2. Taseen loppusumma (Euro) | B154: =+T!C66 -> 294166.6667 | C154: =+T!D66 -> 247154.8333 | D154: =+T!E66 -> 221532.575 | E154: =+T!F66 -> 195930.8704 | F154: =+T!G66 -> 182850.7473
A155: =+T!B67 -> 3. Tilikauden tulos (Euro) | B155: =+T!C67 -> -5833.333333 | C155: =+T!D67 -> -4078.333333 | D155: =+T!E67 -> -974.9783333 | E155: =+T!F67 -> 948.4284533 | F155: =+T!G67 -> 12811.64574
A156: =+T!B68 -> 4. Voitto-osuus omistajalle (Euro) | B156: =+T!C68 -> 0 | C156: =+T!D68 -> 0 | D156: =+T!E68 -> 0 | E156: =+T!F68 -> 0 | F156: =+T!G68 -> 143.6714596
A158: =+T!B70 -> Kasvu
A159: =+T!B71 -> 1. Liikevaihdon kasvu-% | C159: =+T!D71 -> 5 | D159: =+T!E71 -> 5 | E159: =+T!F71 -> 5 | F159: =+T!G71 -> 5
A160: =+T!B72 -> 2. Taseen loppusumman kasvu-% | C160: =+T!D72 -> -15.98135977 | D160: =+T!E72 -> -10.3668854 | E160: =+T!F72 -> -11.55663206 | F160: =+T!G72 -> -6.675886816
A161: =+T!B73 -> 3. Tilikauden tuloksen kasvu-% | C161: =+T!D73 -> -30.08571429 | D161: =+T!E73 -> -76.09370658 | E161: =+T!F73 -> -197.2768749 | F161: =+T!G73 -> 1250.82891
A163: =+T!B75 -> Kannattavuus
A164: =+T!B76 -> 1. Käyttökate / Liikevaihto (%) | B164: =+T!C76 -> 17.04980843 | C164: =+T!D76 -> 17.30523627 | D164: =+T!E76 -> 17.55579882 | E164: =+T!F76 -> 17.80158875 | F164: =+T!G76 -> 18.04269697
A165: =+T!B77 -> 2. Liiketulos / Liikevaihto (%) | B165: =+T!C77 -> 0.1064282673 | C165: =+T!D77 -> 1.168683736 | D165: =+T!E77 -> 2.477254276 | E165: =+T!F77 -> 3.441070136 | F165: =+T!G77 -> 10.93292249
A166: =+T!B78 -> 3. Tilikauden tulos / Liikevaihto (%) | B166: =+T!C78 -> -3.724989357 | C166: =+T!D78 -> -2.48028543 | D166: =+T!E78 -> -0.5647088692 | E166: =+T!F78 -> 0.5231725144 | F166: =+T!G78 -> 6.730633879
A167: =+T!B79 -> 4. Sijoitetun pääoman tuotto-% | C167: =+T!D79 -> 0.6532577904 | D167: =+T!E79 -> 1.730500921 | E167: =+T!F79 -> 2.815889341 | F167: =+T!G79 -> 10.62141445
A168: =+T!B80 -> 5. Oman pääoman tuotto-% | C168: =+T!D80 -> -97.88 | D168: =+T!E80 -> -1103.749057 | E168: =+T!F80 ->  | F168: =+T!G80 -> 20736.37041
A170: =+T!B82 -> Maksuvalmius
A171: =+T!B83 -> 1. Rahoitustulos / Liikevaihto | B171: =+T!C83 -> 13.2183908 | C171: =+T!D83 -> 13.6562671 | D171: =+T!E83 -> 14.51383567 | E171: =+T!F83 -> 14.88369113 | F171: =+T!G83 -> 13.84040835
A172: =+T!B84 -> 2. Quick ratio | B172: =+T!C84 -> 1.435 | C172: =+T!D84 -> 0.2646419777 | D172: =+T!E84 -> 0.1428779617 | E172: =+T!F84 -> 0.1031557748 | F172: =+T!G84 -> 0.08196118527
A174: =+T!B86 -> Vakavaraisuus
A175: =+T!B87 -> 1. Omavaraisuusaste | B175: =+T!C87 -> 1.416430595 | C175: =+T!D87 -> 0.03574007926 | D175: =+T!E87 -> -0.400232336 | E175: =+T!F87 -> 0.03153329192 | F175: =+T!G87 -> 6.961829756
A176: =+T!B88 -> 2. Rahoitustulos / Velat (%) | B176: =+T!C88 -> 7.137931034 | C176: =+T!D88 -> 9.088646174 | D176: =+T!E88 -> 11.26627231 | E176: =+T!F88 -> 13.77540591 | F176: =+T!G88 -> 15.48602506
A178: =+T!B90 -> Rahoitusriski: Taipumus kuulua konkurssiyritysten (1) tai toimivien yritysten (0) joukkoon
A179: =+T!B91 -> 1. Kolmen muuttujan P-luku | B179: =+T!C91 -> 0.649446577 | C179: =+T!D91 -> 0.6671118798 | D179: =+T!E91 -> 0.6688737656 | E179: =+T!F91 -> 0.6658086569 | F179: =+T!G91 -> 0.625610208
A182: =+T!B94 -> TULKINTARAPORTTI
B184: =+T!C96 -> Ennakoidut viisi vuotta:
B185: =+T!C97 -> 1 | C185: =+T!D97 -> 2 | D185: =+T!E97 -> 3 | E185: =+T!F97 -> 4 | F185: =+T!G97 -> 5
A186: =+T!B98 -> Kannattavuus
A187: =+T!B99 -> Käyttökate / Myyntituotot (%) | B187: =+T!C99 -> Positiivinen | C187: =+T!D99 -> Positiivinen | D187: =+T!E99 -> Positiivinen | E187: =+T!F99 -> Positiivinen | F187: =+T!G99 -> Positiivinen
A188: =+T!B100 -> Sijoitetun pääoman tuotto-% | C188: =+T!D100 -> Heikko | D188: =+T!E100 -> Heikko | E188: =+T!F100 -> Heikko | F188: =+T!G100 -> Hyvä
A189: =+T!B101 -> Oman pääoman tuotto-% | C189: =+T!D101 -> Heikko | D189: =+T!E101 -> Heikko | E189: =+T!F101 ->  | F189: =+T!G101 -> Erinomainen
A191: =+T!B103 -> Maksuvalmius
A192: =+T!B104 -> Rahoitustulos / Myyntituotot | B192: =+T!C104 -> Positiivinen | C192: =+T!D104 -> Positiivinen | D192: =+T!E104 -> Positiivinen | E192: =+T!F104 -> Positiivinen | F192: =+T!G104 -> Positiivinen
A193: =+T!B105 -> Quick ratio | B193: =+T!C105 -> Hyvä | C193: =+T!D105 -> Heikko | D193: =+T!E105 -> Heikko | E193: =+T!F105 -> Heikko | F193: =+T!G105 -> Heikko
A195: =+T!B107 -> Vakavaraisuus
A196: =+T!B108 -> Omavaraisuusaste | B196: =+T!C108 -> Heikko | C196: =+T!D108 -> Heikko | D196: =+T!E108 -> Heikko | E196: =+T!F108 -> Heikko | F196: =+T!G108 -> Heikko
A197: =+T!B109 -> Rahoitustulos / Velat (%) | B197: =+T!C109 -> Heikko | C197: =+T!D109 -> Heikko | D197: =+T!E109 -> Välttävä | E197: =+T!F109 -> Välttävä | F197: =+T!G109 -> Välttävä
A199: =+T!B111 -> Rahoitusriski
A200: =+T!B112 -> Kolmen muuttujan P-luku | B200: =+T!C112 -> Suuri riski | C200: =+T!D112 -> Erittäin suuri riski | D200: =+T!E112 -> Erittäin suuri riski | E200: =+T!F112 -> Erittäin suuri riski | F200: =+T!G112 -> Suuri riski
A202: =+T!B115 -> LIITEKUVIOT
A274: Tämä raportti on suuntaa-antava laskelma siitä, miten täysihoito/valmennustallisi voisi antamillasi lähtötiedoilla menestyä viiden ensimmäisen vuoden aikana. Tehdyt laskelmat perustuvat omiin arvioihisi esimerkiksi yrityksesi kasvusta ja velkojen korkokannoista. Laskelmissa ei ole huomioitu erikseen arvonlisäveroa. Vastuu laskelmien hyödyntämisestä on ohjelman käyttäjällä. Copyright Vaasan Yritysinformaatio Oy.

Sheet E (hidden)
A1: 1 | B1: =+A1+1 -> 2 | C1: =+B1+1 -> 3 | D1: 4 | E1: 5 | F1: 6 | G1: 7 | H1: 8
A2: Copyright Vaasan Yritysinformaatio Oy. Kaikki tekijänoikeudet pidätetään.
A3: PERUSTETTAVAN TÄYSHOITO/RAVITALLIYRITYKSEN TILINPÄÄTÖSENNUSTE VIIDELLE VUODELLE
A5: LIIKEVAIHDON KASVUENNUSTE
B6: Lähtöoletus: | D6: Vuodet:
D7: 1 | E7: 2 | F7: 3 | G7: 4 | H7: 5
A8: Ensimmäisen vuoden liikevaihto | B8: =+K!F35 -> 156600 | D8: =+$B$8*(1+$B$9)^(D$7-1) -> 156600 | E8: =+$B$8*(1+$B$9)^(E$7-1) -> 164430 | F8: 172651.5 | G8: 181284.075 | H8: 190348.2787
A9: Liikevaihdon arvioitu kasvuvauhti | B9: =+K!G22 -> 0.05
A10: Kiinteiden kulujen arvioitu kasvuvauhti | B10: =+K!G23 -> 0.03
A13: Verokanta | B13: =+K!G16 -> 0.2
A14: Lyhytaikaisen vieraan pääoman korko-% | B14: =+K!G17 -> 0.03
A15: Pitkäaikaisen vieraan pääoman korko-% | B15: =+K!G18 -> 0.02
A16: Osinko-% kertyneistä voitoista | B16: =+K!G20 -> 0.05
A17: Pitkäaikaisen velan pituus vuosina | B17: =+K!G19 -> 5
A18: Rahoitusomaisuus / Liikevaihto | B18: =+K!G21 -> 0.05 | C18: Minimitaso | D18: Toimivien yritysten keskiarvo
A19: Vaihto-omaisuus / Liikevaihto | B19: 0 | C19: Taso
A20: Myyntisaamisten kasvu-% | B20: 0
A21: Ostovelkojen kasvu-% | B21: 0
A23: KASSAVIRTAENNUSTE (Euro)
D25: =+D7 -> 1 | E25: =+D25+1 -> 2 | F25: =+E25+1 -> 3 | G25: 4 | H25: 5
A26: Liikevaihto | B26: %-osuus | D26: =+D8 -> 156600 | E26: =+E8 -> 164430 | F26: =+F8 -> 172651.5 | G26: =+G8 -> 181284.075 | H26: =+H8 -> 190348.2787
A27: - Muuttuvat kulut
A28: Karkearehu | B28: =+K!G44/100 -> 0.1379310345 | D28: =+$B28*D$26 -> 21600 | E28: 22680 | F28: 23814 | G28: 25004.7 | H28: 26254.935
A29: Väkirehu | B29: =+K!G45/100 -> 0.0275862069 | D29: 4320 | E29: 4536 | F29: 4762.8 | G29: 5000.94 | H29: 5250.987
A30: Kivennäiset | B30: =+K!G46/100 -> 0.05517241379 | D30: 8640 | E30: 9072 | F30: 9525.6 | G30: 10001.88 | H30: 10501.974
A31: Muut ruokintakustannukset | B31: =+K!G47/100 -> 0.05517241379 | D31: 8640 | E31: 9072 | F31: 9525.6 | G31: 10001.88 | H31: 10501.974
A32: Kuivikekustannukset | B32: =+K!G48/100 -> 0.06896551724 | D32: 10800 | E32: 11340 | F32: 11907 | G32: 12502.35 | H32: 13127.4675
A33: Täyshoidon muuttuvat palkat lisineen | B33: =+K!G49/100 -> 0.1379310345 | D33: 21600 | E33: 22680 | F33: 23814 | G33: 25004.7 | H33: 26254.935
A34: Valmennuksen muuttuvat palkat lisineen | B34: =+K!G50/100 -> 0.2068965517 | D34: 32400 | E34: 34020 | F34: 35721 | G34: 37507.05 | H34: 39382.4025
A35: Muut muuttuvat kulut | B35: =+K!G51/100 -> 0.005747126437 | D35: 900 | E35: 945 | F35: 992.25 | G35: 1041.8625 | H35: 1093.955625
A36: = Myyntikate (menopohjainen) | B36: =+K!G52/100 -> 0.3045977011 | D36: =+D26-SUM(D28:D35) -> 47700 | E36: =+E26-SUM(E28:E35) -> 50085 | F36: =+F26-SUM(F28:F35) -> 52589.25 | G36: =+G26-SUM(G28:G35) -> 55218.7125 | H36: =+H26-SUM(H28:H35) -> 57979.64813
A37: - Kiinteät kulut
A38: Vuokrakulut | B38: =+K!F56 -> 0 | D38: =+$B38*(1+$B$10)^(D$25-1) -> 0 | E38: 0 | F38: 0 | G38: 0 | H38: 0
A39: Sähkökulut | B39: =+K!F57 -> 2400 | D39: 2400 | E39: 2472 | F39: 2546.16 | G39: 2622.5448 | H39: 2701.221144
A40: Vesikulut | B40: =+K!F58 -> 1200 | D40: 1200 | E40: 1236 | F40: 1273.08 | G40: 1311.2724 | H40: 1350.610572
A41: Pohjien huolto | B41: =+K!F59 -> 3000 | D41: 3000 | E41: 3090 | F41: 3182.7 | G41: 3278.181 | H41: 3376.52643
A42: Lantalan tyhjennys | B42: =+K!F60 -> 1200 | D42: 1200 | E42: 1236 | F42: 1273.08 | G42: 1311.2724 | H42: 1350.610572
A43: Kiinteät palkkakustannukset lisineen | B43: =+K!F61 -> 12000 | D43: 12000 | E43: 12360 | F43: 12730.8 | G43: 13112.724 | H43: 13506.10572
A44: Muut kiinteät kulut | B44: =+K!F62 -> 1200 | D44: 1200 | E44: 1236 | F44: 1273.08 | G44: 1311.2724 | H44: 1350.610572
A45: = Käyttökate (menopohjainen) | D45: =+D36-SUM(D38:D44) -> 26700 | E45: =+E36-SUM(E38:E44) -> 28455 | F45: 30310.35 | G45: 32271.4455 | H45: 34343.96312
A46: Korkomenot | B46: automaatti | D46: =+$B$14*C$125+$B$15*C$127 -> 6000 | E46: =+$B$14*D$125+$B$15*D$127 -> 6000 | F46: =+$B$14*E$125+$B$15*E$127 -> 5251.995 | G46: =+$B$14*F$125+$B$15*F$127 -> 5052.5766 | H46: =+$B$14*G$125+$B$15*G$127 -> 4796.072609
A47: Verot | B47: automaatti | D47: =+D106 -> 0 | E47: =+E106 -> 0 | F47: =+F106 -> 0 | G47: =+G106 -> 237.1071133 | H47: =+H106 -> 3202.911435
A48: Osingot | B48: automaatti | D48: 0 | E48: =+D133 -> 0 | F48: =+E133 -> 0 | G48: =+F133 -> 0 | H48: =+G133 -> 0
A49: = Rahoitustulos (menopohjainen) | D49: =+D45-SUM(D46:D48) -> 20700 | E49: =+E45-SUM(E46:E48) -> 22455 | F49: 25058.355 | G49: 26981.76179 | H49: 26344.97907
A50: - Investoinnit
A51: Maa- ja vesialueet | B51: =+K!F72 -> 40000 | C51: =+B51 -> 40000 | D51: =+B51 -> 40000 | E51: 0 | F51: 0 | G51: 0 | H51: 0
A52: Rakennukset ja rakennelmat | B52: =+K!F73 -> 200000 | C52: 200000 | D52: 200000 | E52: 0 | F52: 0 | G52: 0 | H52: 0
A53: Koneet ja kalusto | B53: =+K!F74 -> 50000 | C53: 50000 | D53: 50000 | E53: 0 | F53: 0 | G53: 0 | H53: 0
A54: Aineeton käyttöomaisuus | B54: =+K!F75 -> 1000 | C54: 1000 | D54: 1000 | E54: 0 | F54: 0 | G54: 0 | H54: 0
A55: Muu käyttöomaisuus | B55: =+K!F76 -> 1000 | C55: 1000 | D55: 1000 | E55: 0 | F55: 0 | G55: 0 | H55: 0
A56: - Kassavirtamuunnos
A57: = Investointijäämä | D57: =+D49-SUM(D51:D56) -> -271300 | E57: =+E49-SUM(E51:E56) -> 22455 | F57: =+F49-SUM(F51:F56) -> 25058.355 | G57: =+G49-SUM(G51:G56) -> 26981.76179 | H57: =+H49-SUM(H51:H56) -> 26344.97907
A58: + Muun rahoitusomaisuuden vähennys | B58: automaatti | D58: =-$B$18*D$78+C113 -> -7830 | E58: =-$B$18*E$78+D113 -> 20478.5 | F58: =-$B$18*F$78+E113 -> -411.075 | G58: =-$B$18*G$78+F113 -> -431.62875 | H58: =-$B$18*H$78+G113 -> -453.2101875
A59: + Muun lyhytaikaisen vieraan pääoman lisäys | B59: =+K!F81 -> 20000 | D59: =+K!F81 -> 20000 | E59: 0 | F59: 0 | G59: 0 | H59: 0
A60: + Pitkäaikaisen vieraan pääoman lisäys | B60: =+K!F82 -> 270000 | D60: =+K!F82 -> 270000 | E60: =-IF(K!$G$23<E25,$D$60/K!$G$19) -> -54000 | F60: =-IF(K!$G$23<F25,$D$60/K!$G$19) -> -54000 | G60: =-IF(K!$G$23<G25,$D$60/K!$G$19) -> -54000 | H60: =-IF(K!$G$23<H25,$D$60/K!$G$19) -> -54000
A61: + Oman pääoman lisäys | B61: =+K!F83 -> 10000 | D61: =+K!F83 -> 10000 | E61: 0 | F61: 0 | G61: 0 | H61: 0
A62: - Rahoitusomaisuuden lisäys (tasoitus) | B62: automaatti | D62: =+IF(SUM(D57:D61)>0,-SUM(D57:D61),0) -> -20870 | E62: =+IF(SUM(E57:E61)>0,-SUM(E57:E61),0) -> 0 | F62: 0 | G62: 0 | H62: 0
A63: = Netto rahoituksen jälkeen (0) | D63: =+SUM(D57:D62) -> 0 | E63: =+SUM(E57:E62) -> -11066.5 | F63: =+SUM(F57:F62) -> -29352.72 | G63: =+SUM(G57:G62) -> -27449.86696 | H63: =+SUM(H57:H62) -> -28108.23112
D64: =+IF(D63=0," ","Huom! Ei 0") ->  | E64: =+IF(E63=0," ","Huom! Ei 0") -> Huom! Ei 0 | F64: Huom! Ei 0 | G64: Huom! Ei 0 | H64: Huom! Ei 0
D65: Lyhytaikaisen velan
D66: lisäykseen
A68: Poistot: | B68: Pitoaika | C68: Poisto-osuus
A69: =+A51 -> Maa- ja vesialueet | B69: 0 | C69: 0
A70: =+A52 -> Rakennukset ja rakennelmat | B70: =+K!F10 -> 15 | C70: =+K!G10 -> 0.06666666667
A71: =+A53 -> Koneet ja kalusto | B71: =+K!F11 -> 4 | C71: =+K!G11 -> 0.25
A72: =+A54 -> Aineeton käyttöomaisuus | B72: =+K!F12 -> 5 | C72: =+K!G12 -> 0.2
A73: =+A55 -> Muu käyttöomaisuus | B73: =+K!F13 -> 2 | C73: =+K!G13 -> 0.5
A75: TULOSLASKELMAENNUSTE (Euro)
D76: Ennusteet:
D77: =+D25 -> 1 | E77: 2 | F77: 3 | G77: 4 | H77: 5
A78: Liikevaihto | D78: 156600 | E78: 164430 | F78: 172651.5 | G78: 181284.075 | H78: 190348.2787
A79: - Muuttuvat kulut
A80: Karkearehu | D80: =+D28 -> 21600 | E80: 22680 | F80: 23814 | G80: 25004.7 | H80: 26254.935
A81: Väkirehu | D81: 4320 | E81: 4536 | F81: 4762.8 | G81: 5000.94 | H81: 5250.987
A82: Kivennäiset | D82: 8640 | E82: 9072 | F82: 9525.6 | G82: 10001.88 | H82: 10501.974
A83: Muut ruokintakustannukset | D83: 8640 | E83: 9072 | F83: 9525.6 | G83: 10001.88 | H83: 10501.974
A84: Kuivikekustannukset | D84: 10800 | E84: 11340 | F84: 11907 | G84: 12502.35 | H84: 13127.4675
A85: Täyshoidon muuttuvat palkat lisineen | D85: 21600 | E85: 22680 | F85: 23814 | G85: 25004.7 | H85: 26254.935
A86: Valmennuksen muuttuvat palkat lisineen | D86: =+D34 -> 32400 | E86: 34020 | F86: 35721 | G86: 37507.05 | H86: 39382.4025
A87: Muut muuttuvat kulut | D87: =+D35 -> 900 | E87: =+E35 -> 945 | F87: =+F35 -> 992.25 | G87: =+G35 -> 1041.8625 | H87: =+H35 -> 1093.955625
A88: = Myyntikate | D88: =+D78-SUM(D80:D87) -> 47700 | E88: =+E78-SUM(E80:E87) -> 50085 | F88: =+F78-SUM(F80:F87) -> 52589.25 | G88: =+G78-SUM(G80:G87) -> 55218.7125 | H88: =+H78-SUM(H80:H87) -> 57979.64813
A89: - Kiinteät kulut
A90: Vuokrakulut | D90: =+D38 -> 0 | E90: 0 | F90: 0 | G90: 0 | H90: 0
A91: Sähkökulut | D91: 2400 | E91: 2472 | F91: 2546.16 | G91: 2622.5448 | H91: 2701.221144
A92: Vesikulut | D92: 1200 | E92: 1236 | F92: 1273.08 | G92: 1311.2724 | H92: 1350.610572
A93: Pohjien huolto | D93: 3000 | E93: 3090 | F93: 3182.7 | G93: 3278.181 | H93: 3376.52643
A94: Lantalan tyhjennys | D94: 1200 | E94: 1236 | F94: 1273.08 | G94: 1311.2724 | H94: 1350.610572
A95: Kiinteät palkkakustannukset lisineen | D95: 12000 | E95: 12360 | F95: 12730.8 | G95: 13112.724 | H95: 13506.10572
A96: Muut kiinteät kulut | D96: 1200 | E96: 1236 | F96: 1273.08 | G96: 1311.2724 | H96: 1350.610572
A97: = Käyttökate | D97: =+D88-SUM(D90:D96) -> 26700 | E97: =+E88-SUM(E90:E96) -> 28455 | F97: 30310.35 | G97: 32271.4455 | H97: 34343.96312
A98: - Poistot
A99: =+A51 -> Maa- ja vesialueet | C99: =+C51 -> 40000 | D99: =+IF(D$77>$B69,0,$C69*$C99) -> 0 | E99: 0 | F99: 0 | G99: 0 | H99: 0
A100: =+A52 -> Rakennukset ja rakennelmat | C100: =+C52 -> 200000 | D100: 13333.33333 | E100: 13333.33333 | F100: 13333.33333 | G100: 13333.33333 | H100: 13333.33333
A101: =+A53 -> Koneet ja kalusto | C101: =+C53 -> 50000 | D101: 12500 | E101: 12500 | F101: 12500 | G101: 12500 | H101: 0
A102: =+A54 -> Aineeton käyttöomaisuus | C102: =+C54 -> 1000 | D102: 200 | E102: 200 | F102: 200 | G102: 200 | H102: 200
A103: =+A55 -> Muu käyttöomaisuus | C103: =+C55 -> 1000 | D103: 500 | E103: 500 | F103: 0 | G103: 0 | H103: 0
A104: = Liiketulos | D104: =+D97-SUM(D99:D103) -> 166.6666667 | E104: =+E97-SUM(E99:E103) -> 1921.666667 | F104: =+F97-SUM(F99:F103) -> 4277.016667 | G104: =+G97-SUM(G99:G103) -> 6238.112167 | H104: =+H97-SUM(H99:H103) -> 20810.62978
A105: - Korkokulut | D105: =+D46 -> 6000 | E105: =+E46 -> 6000 | F105: =+F46 -> 5251.995 | G105: =+G46 -> 5052.5766 | H105: =+H46 -> 4796.072609
A106: - Verot | D106: =+IF((D104-D105)>0,$B$13*(D104-D105),0) -> 0 | E106: =+IF((E104-E105)>0,$B$13*(E104-E105),0) -> 0 | F106: 0 | G106: 237.1071133 | H106: 3202.911435
A107: Tilikauden tulos | D107: =+D104-SUM(D105:D106) -> -5833.333333 | E107: =+E104-SUM(E105:E106) -> -4078.333333 | F107: -974.9783333 | G107: 948.4284533 | H107: 12811.64574
A109: TASE-ENNUSTE (Euro)
A111: Taseen omaisuus | D111: Ennusteet:
A112: Lyhytaikainen: | D112: =+D77 -> 1 | E112: =+E77 -> 2 | F112: =+F77 -> 3 | G112: =+G77 -> 4 | H112: =+H77 -> 5
A113: Rahoitusomaisuus | D113: =+$B$18*D78-D62 -> 28700 | E113: =+$B$18*E78-E62 -> 8221.5 | F113: =+$B$18*F78-F62 -> 8632.575 | G113: =+$B$18*G78-G62 -> 9064.20375 | H113: =+$B$18*H78-H62 -> 9517.413937
A114: Pitkäaikainen:
A115: =+A51 -> Maa- ja vesialueet | C115: =+C51 -> 40000 | D115: =+C115-D99 -> 40000 | E115: =+D115-E99+E51 -> 40000 | F115: 40000 | G115: 40000 | H115: 40000
A116: =+A52 -> Rakennukset ja rakennelmat | C116: =+C52 -> 200000 | D116: =+C116-D100 -> 186666.6667 | E116: 173333.3333 | F116: 160000 | G116: 146666.6667 | H116: 133333.3333
A117: =+A53 -> Koneet ja kalusto | C117: =+C53 -> 50000 | D117: =+C117-D101 -> 37500 | E117: 25000 | F117: 12500 | G117: 0 | H117: 0
A118: =+A54 -> Aineeton käyttöomaisuus | C118: =+C54 -> 1000 | D118: =+C118-D102 -> 800 | E118: 600 | F118: 400 | G118: 200 | H118: 0
A119: =+A55 -> Muu käyttöomaisuus | C119: =+C55 -> 1000 | D119: =+C119-D103 -> 500 | E119: 0 | F119: 0 | G119: 0 | H119: 0
A120: Yhteensä | D120: =+D113+SUM(D115:D119) -> 294166.6667 | E120: =+E113+SUM(E115:E119) -> 247154.8333 | F120: =+F113+SUM(F115:F119) -> 221532.575 | G120: =+G113+SUM(G115:G119) -> 195930.8704 | H120: =+H113+SUM(H115:H119) -> 182850.7473
A122: Taseen pääoma
A123: Lyhytaikainen:
A124: Lyhytaikaiset velat (maks. voitto-osuus) | D124: =+D133 -> 0 | E124: =+E133 -> 0 | F124: 0 | G124: 0 | H124: 143.6714596
A125: Muu lyhytaikainen vieras pääoma | C125: =+B59 -> 20000 | D125: =+C125-D63 -> 20000 | E125: =+D125-E63 -> 31066.5 | F125: =+E125-F63 -> 60419.22 | G125: =+F125-G63 -> 87869.08696 | H125: =+G125-H63 -> 115977.3181
A126: Pitkäaikainen:
A127: Pitkäaikainen vieras pääoma | C127: =+B60 -> 270000 | D127: =+C127 -> 270000 | E127: =+D127+E60 -> 216000 | F127: 162000 | G127: 108000 | H127: 54000
A128: Sijoitettu oma pääoma | C128: =+B61 -> 10000 | D128: =+C128 -> 10000 | E128: 10000 | F128: 10000 | G128: 10000 | H128: 10000
A129: Kertyneet voittovarat ja muu oma pääoma | C129: =+D107 -> -5833.333333 | D129: =+C129-D133 -> -5833.333333 | E129: =+D129+E107-E133 -> -9911.666667 | F129: =+E129+F107-F133 -> -10886.645 | G129: =+F129+G107-G133 -> -9938.216547 | H129: =+G129+H107-H133 -> 2729.757732
A130: Yhteensä | D130: =+SUM(D124:D129) -> 294166.6667 | E130: 247154.8333 | F130: 221532.575 | G130: 195930.8704 | H130: 182850.7473
A132: Lisätietoja: | D132: Laskettu:
A133: Osingot kertyneistä voitoista | B133: =+B16 -> 0.05 | D133: =+IF(C129-$B133*C129>0,$B133*C129,IF(C129>0,C129,0)) -> 0 | E133: =+IF(D129-$B133*D129+E107>0,$B133*(D129+E107),IF(D129+E107>0,D129+E107,0)) -> 0 | F133: =+IF(E129-$B133*E129+F107>0,$B133*(E129+F107),IF(E129+F107>0,E129+F107,0)) -> 0 | G133: =+IF(F129-$B133*F129+G107>0,$B133*(F129+G107),IF(F129+G107>0,F129+G107,0)) -> 0 | H133: =+IF(G129-$B133*G129+H107>0,$B133*(G129+H107),IF(G129+H107>0,G129+H107,0)) -> 143.6714596
C135: Tarkistus | D135: =0.05*(D129+D124) -> -291.6666667 | E135: =0.05*(E129+E124) -> -495.5833333 | F135: -544.33225 | G135: -496.9108273 | H135: 143.6714596
A138: TILINPÄÄTÖKSEN TUNNUSLUVUT
D139: =+D25 -> 1 | E139: =+E25 -> 2 | F139: =+F25 -> 3 | G139: =+G25 -> 4 | H139: =+H25 -> 5
A140: Koko
A141: 1. Liikevaihto (Euro) | D141: =+D78 -> 156600 | E141: =+E78 -> 164430 | F141: =+F78 -> 172651.5 | G141: =+G78 -> 181284.075 | H141: =+H78 -> 190348.2787
A142: 2. Taseen loppusumma (Euro) | D142: =+D120 -> 294166.6667 | E142: =+E120 -> 247154.8333 | F142: =+F120 -> 221532.575 | G142: =+G120 -> 195930.8704 | H142: =+H120 -> 182850.7473
A143: 3. Tilikauden tulos (Euro) | D143: =+D107 -> -5833.333333 | E143: =+E107 -> -4078.333333 | F143: =+F107 -> -974.9783333 | G143: =+G107 -> 948.4284533 | H143: =+H107 -> 12811.64574
A144: 4. Voitto-osuus omistajalle (Euro) | D144: =+D133 -> 0 | E144: =+E133 -> 0 | F144: 0 | G144: 0 | H144: 143.6714596
A146: Kasvu
A147: 1. Liikevaihdon kasvu-% | E147: =100*E78/D78-100 -> 5 | F147: =100*F78/E78-100 -> 5 | G147: =100*G78/F78-100 -> 5 | H147: =100*H78/G78-100 -> 5
A148: 2. Taseen loppusumman kasvu-% | E148: =100*E120/D120-100 -> -15.98135977 | F148: =100*F120/E120-100 -> -10.3668854 | G148: =100*G120/F120-100 -> -11.55663206 | H148: =100*H120/G120-100 -> -6.675886816
A149: 3. Tilikauden tuloksen kasvu-% | E149: =100*(E107)/(D107)-100 -> -30.08571429 | F149: =100*(F107)/(E107)-100 -> -76.09370658 | G149: =100*(G107)/(F107)-100 -> -197.2768749 | H149: =100*(H107)/(G107)-100 -> 1250.82891
A151: Kannattavuus
A152: 1. Käyttökate / Liikevaihto (%) | D152: =100*D97/D78 -> 17.04980843 | E152: =100*E97/E78 -> 17.30523627 | F152: =100*F97/F78 -> 17.55579882 | G152: =100*G97/G78 -> 17.80158875 | H152: =100*H97/H78 -> 18.04269697
A153: 2. Liiketulos / Liikevaihto (%) | D153: =100*D104/D78 -> 0.1064282673 | E153: =100*E104/E78 -> 1.168683736 | F153: =100*F104/F78 -> 2.477254276 | G153: =100*G104/G78 -> 3.441070136 | H153: =100*H104/H78 -> 10.93292249
A154: 3. Tilikauden tulos / Liikevaihto (%) | D154: =100*D107/D78 -> -3.724989357 | E154: =100*E107/E78 -> -2.48028543 | F154: =100*F107/F78 -> -0.5647088692 | G154: =100*G107/G78 -> 0.5231725144 | H154: =100*H107/H78 -> 6.730633879
A155: 4. Sijoitetun pääoman tuotto-% | E155: =100*(E107+E106+E105)/D120 -> 0.6532577904 | F155: =100*(F107+F106+F105)/E120 -> 1.730500921 | G155: =100*(G107+G106+G105)/F120 -> 2.815889341 | H155: =100*(H107+H106+H105)/G120 -> 10.62141445
A156: 5. Oman pääoman tuotto-% | E156: =+IF(D128+D129>0,100*(E107)/(D128+D129),"") -> -97.88 | F156: =+IF(E128+E129>0,100*(F107)/(E128+E129),"") -> -1103.749057 | H156: 20736.37041
A158: Maksuvalmius
A159: 1. Rahoitustulos / Liikevaihto | D159: =100*(D107+SUM(D99:D103))/D78 -> 13.2183908 | E159: =100*(E107+SUM(E99:E103))/E78 -> 13.6562671 | F159: =100*(F107+SUM(F99:F103))/F78 -> 14.51383567 | G159: =100*(G107+SUM(G99:G103))/G78 -> 14.88369113 | H159: =100*(H107+SUM(H99:H103))/H78 -> 13.84040835
A160: 2. Quick ratio | D160: =+(D113)/(D124+D125) -> 1.435 | E160: =+(E113)/(E124+E125) -> 0.2646419777 | F160: =+(F113)/(F124+F125) -> 0.1428779617 | G160: =+(G113)/(G124+G125) -> 0.1031557748 | H160: =+(H113)/(H124+H125) -> 0.08196118527
A162: Vakavaraisuus
A163: 1. Omavaraisuusaste | D163: =100*(D128+D129)/D130 -> 1.416430595 | E163: =100*(E128+E129)/E130 -> 0.03574007926 | F163: -0.400232336 | G163: 0.03153329192 | H163: 6.961829756
A164: 2. Rahoitustulos / Velat (%) | D164: =100*(D107+SUM(D99:D103))/(+D124+D125+D127) -> 7.137931034 | E164: =100*(E107+SUM(E99:E103))/(+E124+E125+E127) -> 9.088646174 | F164: =100*(F107+SUM(F99:F103))/(+F124+F125+F127) -> 11.26627231 | G164: =100*(G107+SUM(G99:G103))/(+G124+G125+G127) -> 13.77540591 | H164: =100*(H107+SUM(H99:H103))/(+H124+H125+H127) -> 15.48602506
A166: Rahoitusriski
A167: 1. Kolmen muuttujan P-luku | B167: Kriittinen arvo P* = 0,50 | D167: =1/(1+EXP(-(0.843-0.027*D163-0.039*D160-0.01*D159))) -> 0.649446577 | E167: =1/(1+EXP(-(0.843-0.027*E163-0.039*E160-0.01*E159))) -> 0.6671118798 | F167: =1/(1+EXP(-(0.843-0.027*F163-0.039*F160-0.01*F159))) -> 0.6688737656 | G167: =1/(1+EXP(-(0.843-0.027*G163-0.039*G160-0.01*G159))) -> 0.6658086569 | H167: =1/(1+EXP(-(0.843-0.027*H163-0.039*H160-0.01*H159))) -> 0.625610208
B168: Tulkintalause | D168: =+IF(D167>0.65,"Erittäin suuri riski",IF(D167>0.45,"Suuri riski",IF(D167>0.25,"Kohtuullinen riski",IF(D167>0.1,"Suhteellisen pieni riski","Pieni riski")))) -> Suuri riski | E168: =+IF(E167>0.65,"Erittäin suuri riski",IF(E167>0.45,"Suuri riski",IF(E167>0.25,"Kohtuullinen riski",IF(E167>0.1,"Suhteellisen pieni riski","Pieni riski")))) -> Erittäin suuri riski | F168: Erittäin suuri riski | G168: Erittäin suuri riski | H168: Suuri riski

Sheet T (hidden)
B1: Copyright Vaasan Yritysinformaatio Oy. Kaikki tekijänoikeudet pidätetään.
B3: ENNAKOITU TULOSLASKELMA
C4: Ennakoidut viisi vuotta:
C5: 1 | D5: 2 | E5: 3 | F5: 4 | G5: 5
B6: =+E!A78 -> Liikevaihto | C6: =+E!D78 -> 156600 | D6: =+E!E78 -> 164430 | E6: =+E!F78 -> 172651.5 | F6: =+E!G78 -> 181284.075 | G6: =+E!H78 -> 190348.2787
B7: =+E!A79 -> - Muuttuvat kulut
B8: =+E!A80 -> Karkearehu | C8: =+E!D80 -> 21600 | D8: =+E!E80 -> 22680 | E8: =+E!F80 -> 23814 | F8: =+E!G80 -> 25004.7 | G8: =+E!H80 -> 26254.935
B9: =+E!A81 -> Väkirehu | C9: =+E!D81 -> 4320 | D9: =+E!E81 -> 4536 | E9: =+E!F81 -> 4762.8 | F9: =+E!G81 -> 5000.94 | G9: =+E!H81 -> 5250.987
B10: =+E!A82 -> Kivennäiset | C10: =+E!D82 -> 8640 | D10: =+E!E82 -> 9072 | E10: =+E!F82 -> 9525.6 | F10: =+E!G82 -> 10001.88 | G10: =+E!H82 -> 10501.974
B11: =+E!A83 -> Muut ruokintakustannukset | C11: =+E!D83 -> 8640 | D11: =+E!E83 -> 9072 | E11: =+E!F83 -> 9525.6 | F11: =+E!G83 -> 10001.88 | G11: =+E!H83 -> 10501.974
B12: =+E!A84 -> Kuivikekustannukset | C12: =+E!D84 -> 10800 | D12: =+E!E84 -> 11340 | E12: =+E!F84 -> 11907 | F12: =+E!G84 -> 12502.35 | G12: =+E!H84 -> 13127.4675
B13: =+E!A85 -> Täyshoidon muuttuvat palkat lisineen | C13: =+E!D85 -> 21600 | D13: =+E!E85 -> 22680 | E13: =+E!F85 -> 23814 | F13: =+E!G85 -> 25004.7 | G13: =+E!H85 -> 26254.935
B14: =+E!A86 -> Valmennuksen muuttuvat palkat lisineen | C14: =+E!D86 -> 32400 | D14: =+E!E86 -> 34020 | E14: =+E!F86 -> 35721 | F14: =+E!G86 -> 37507.05 | G14: =+E!H86 -> 39382.4025
B15: =+E!A87 -> Muut muuttuvat kulut | C15: =+E!D87 -> 900 | D15: =+E!E87 -> 945 | E15: =+E!F87 -> 992.25 | F15: =+E!G87 -> 1041.8625 | G15: =+E!H87 -> 1093.955625
B16: =+E!A88 -> = Myyntikate | C16: =+E!D88 -> 47700 | D16: =+E!E88 -> 50085 | E16: =+E!F88 -> 52589.25 | F16: =+E!G88 -> 55218.7125 | G16: =+E!H88 -> 57979.64813
B17: =+E!A89 -> - Kiinteät kulut
B18: =+E!A90 -> Vuokrakulut | C18: =+E!D90 -> 0 | D18: =+E!E90 -> 0 | E18: =+E!F90 -> 0 | F18: =+E!G90 -> 0 | G18: =+E!H90 -> 0
B19: =+E!A91 -> Sähkökulut | C19: =+E!D91 -> 2400 | D19: =+E!E91 -> 2472 | E19: =+E!F91 -> 2546.16 | F19: =+E!G91 -> 2622.5448 | G19: =+E!H91 -> 2701.221144
B20: =+E!A92 -> Vesikulut | C20: =+E!D92 -> 1200 | D20: =+E!E92 -> 1236 | E20: =+E!F92 -> 1273.08 | F20: =+E!G92 -> 1311.2724 | G20: =+E!H92 -> 1350.610572
B21: =+E!A93 -> Pohjien huolto | C21: =+E!D93 -> 3000 | D21: =+E!E93 -> 3090 | E21: =+E!F93 -> 3182.7 | F21: =+E!G93 -> 3278.181 | G21: =+E!H93 -> 3376.52643
B22: =+E!A94 -> Lantalan tyhjennys | C22: =+E!D94 -> 1200 | D22: =+E!E94 -> 1236 | E22: =+E!F94 -> 1273.08 | F22: =+E!G94 -> 1311.2724 | G22: =+E!H94 -> 1350.610572
B23: =+E!A95 -> Kiinteät palkkakustannukset lisineen | C23: =+E!D95 -> 12000 | D23: =+E!E95 -> 12360 | E23: =+E!F95 -> 12730.8 | F23: =+E!G95 -> 13112.724 | G23: =+E!H95 -> 13506.10572
B24: Muut kiinteät kulut | C24: =+E!D96 -> 1200 | D24: =+E!E96 -> 1236 | E24: =+E!F96 -> 1273.08 | F24: =+E!G96 -> 1311.2724 | G24: =+E!H96 -> 1350.610572
B25: =+E!A97 -> = Käyttökate | C25: =+E!D97 -> 26700 | D25: =+E!E97 -> 28455 | E25: =+E!F97 -> 30310.35 | F25: =+E!G97 -> 32271.4455 | G25: =+E!H97 -> 34343.96312
B26: =+E!A98 -> - Poistot
B27: =+E!A99 -> Maa- ja vesialueet | C27: =+E!D99 -> 0 | D27: =+E!E99 -> 0 | E27: =+E!F99 -> 0 | F27: =+E!G99 -> 0 | G27: =+E!H99 -> 0
B28: =+E!A100 -> Rakennukset ja rakennelmat | C28: =+E!D100 -> 13333.33333 | D28: =+E!E100 -> 13333.33333 | E28: =+E!F100 -> 13333.33333 | F28: =+E!G100 -> 13333.33333 | G28: =+E!H100 -> 13333.33333
B29: =+E!A101 -> Koneet ja kalusto | C29: =+E!D101 -> 12500 | D29: =+E!E101 -> 12500 | E29: =+E!F101 -> 12500 | F29: =+E!G101 -> 12500 | G29: =+E!H101 -> 0
B30: =+E!A102 -> Aineeton käyttöomaisuus | C30: =+E!D102 -> 200 | D30: =+E!E102 -> 200 | E30: =+E!F102 -> 200 | F30: =+E!G102 -> 200 | G30: =+E!H102 -> 200
B31: =+E!A103 -> Muu käyttöomaisuus | C31: =+E!D103 -> 500 | D31: =+E!E103 -> 500 | E31: =+E!F103 -> 0 | F31: =+E!G103 -> 0 | G31: =+E!H103 -> 0
B32: =+E!A104 -> = Liiketulos | C32: =+E!D104 -> 166.6666667 | D32: =+E!E104 -> 1921.666667 | E32: =+E!F104 -> 4277.016667 | F32: =+E!G104 -> 6238.112167 | G32: =+E!H104 -> 20810.62978
B33: =+E!A105 -> - Korkokulut | C33: =+E!D105 -> 6000 | D33: =+E!E105 -> 6000 | E33: =+E!F105 -> 5251.995 | F33: =+E!G105 -> 5052.5766 | G33: =+E!H105 -> 4796.072609
B34: =+E!A106 -> - Verot | C34: =+E!D106 -> 0 | D34: =+E!E106 -> 0 | E34: =+E!F106 -> 0 | F34: =+E!G106 -> 237.1071133 | G34: =+E!H106 -> 3202.911435
B35: =+E!A107 -> Tilikauden tulos | C35: =+E!D107 -> -5833.333333 | D35: =+E!E107 -> -4078.333333 | E35: =+E!F107 -> -974.9783333 | F35: =+E!G107 -> 948.4284533 | G35: =+E!H107 -> 12811.64574
B37: ENNAKOITU TASE
C38: =+C4 -> Ennakoidut viisi vuotta:
C39: 1 | D39: 2 | E39: 3 | F39: 4 | G39: 5
B40: =+E!A111 -> Taseen omaisuus
B41: =+E!A112 -> Lyhytaikainen:
B42: =+E!A113 -> Rahoitusomaisuus | C42: =+E!D113 -> 28700 | D42: =+E!E113 -> 8221.5 | E42: =+E!F113 -> 8632.575 | F42: =+E!G113 -> 9064.20375 | G42: =+E!H113 -> 9517.413937
B43: =+E!A114 -> Pitkäaikainen:
B44: =+E!A115 -> Maa- ja vesialueet | C44: =+E!D115 -> 40000 | D44: =+E!E115 -> 40000 | E44: =+E!F115 -> 40000 | F44: =+E!G115 -> 40000 | G44: =+E!H115 -> 40000
B45: =+E!A116 -> Rakennukset ja rakennelmat | C45: =+E!D116 -> 186666.6667 | D45: =+E!E116 -> 173333.3333 | E45: =+E!F116 -> 160000 | F45: =+E!G116 -> 146666.6667 | G45: =+E!H116 -> 133333.3333
B46: =+E!A117 -> Koneet ja kalusto | C46: =+E!D117 -> 37500 | D46: =+E!E117 -> 25000 | E46: =+E!F117 -> 12500 | F46: =+E!G117 -> 0 | G46: =+E!H117 -> 0
B47: =+E!A118 -> Aineeton käyttöomaisuus | C47: =+E!D118 -> 800 | D47: =+E!E118 -> 600 | E47: =+E!F118 -> 400 | F47: =+E!G118 -> 200 | G47: =+E!H118 -> 0
B48: =+E!A119 -> Muu käyttöomaisuus | C48: =+E!D119 -> 500 | D48: =+E!E119 -> 0 | E48: =+E!F119 -> 0 | F48: =+E!G119 -> 0 | G48: =+E!H119 -> 0
B49: =+E!A120 -> Yhteensä | C49: =+E!D120 -> 294166.6667 | D49: =+E!E120 -> 247154.8333 | E49: =+E!F120 -> 221532.575 | F49: =+E!G120 -> 195930.8704 | G49: =+E!H120 -> 182850.7473
B51: =+E!A122 -> Taseen pääoma
B52: =+E!A123 -> Lyhytaikainen:
B53: =+E!A124 -> Lyhytaikaiset velat (maks. voitto-osuus) | C53: =+E!D124 -> 0 | D53: =+E!E124 -> 0 | E53: =+E!F124 -> 0 | F53: =+E!G124 -> 0 | G53: =+E!H124 -> 143.6714596
B54: =+E!A125 -> Muu lyhytaikainen vieras pääoma | C54: =+E!D125 -> 20000 | D54: =+E!E125 -> 31066.5 | E54: =+E!F125 -> 60419.22 | F54: =+E!G125 -> 87869.08696 | G54: =+E!H125 -> 115977.3181
B55: =+E!A126 -> Pitkäaikainen:
B56: =+E!A127 -> Pitkäaikainen vieras pääoma | C56: =+E!D127 -> 270000 | D56: =+E!E127 -> 216000 | E56: =+E!F127 -> 162000 | F56: =+E!G127 -> 108000 | G56: =+E!H127 -> 54000
B57: =+E!A128 -> Sijoitettu oma pääoma | C57: =+E!D128 -> 10000 | D57: =+E!E128 -> 10000 | E57: =+E!F128 -> 10000 | F57: =+E!G128 -> 10000 | G57: =+E!H128 -> 10000
B58: =+E!A129 -> Kertyneet voittovarat ja muu oma pääoma | C58: =+E!D129 -> -5833.333333 | D58: =+E!E129 -> -9911.666667 | E58: =+E!F129 -> -10886.645 | F58: =+E!G129 -> -9938.216547 | G58: =+E!H129 -> 2729.757732
B59: =+E!A130 -> Yhteensä | C59: =+E!D130 -> 294166.6667 | D59: =+E!E130 -> 247154.8333 | E59: =+E!F130 -> 221532.575 | F59: =+E!G130 -> 195930.8704 | G59: =+E!H130 -> 182850.7473
B61: ENNAKOIDUT TUNNUSLUVUT
C62: =+C4 -> Ennakoidut viisi vuotta:
C63: =+E!D139 -> 1 | D63: =+E!E139 -> 2 | E63: =+E!F139 -> 3 | F63: =+E!G139 -> 4 | G63: =+E!H139 -> 5
B64: Koko
B65: =+E!A141 -> 1. Liikevaihto (Euro) | C65: =+E!D141 -> 156600 | D65: =+E!E141 -> 164430 | E65: =+E!F141 -> 172651.5 | F65: =+E!G141 -> 181284.075 | G65: =+E!H141 -> 190348.2787
B66: =+E!A142 -> 2. Taseen loppusumma (Euro) | C66: =+E!D142 -> 294166.6667 | D66: =+E!E142 -> 247154.8333 | E66: =+E!F142 -> 221532.575 | F66: =+E!G142 -> 195930.8704 | G66: =+E!H142 -> 182850.7473
B67: =+E!A143 -> 3. Tilikauden tulos (Euro) | C67: =+E!D143 -> -5833.333333 | D67: =+E!E143 -> -4078.333333 | E67: =+E!F143 -> -974.9783333 | F67: =+E!G143 -> 948.4284533 | G67: =+E!H143 -> 12811.64574
B68: =+E!A144 -> 4. Voitto-osuus omistajalle (Euro) | C68: =+E!D144 -> 0 | D68: =+E!E144 -> 0 | E68: =+E!F144 -> 0 | F68: =+E!G144 -> 0 | G68: =+E!H144 -> 143.6714596
B70: =+E!A146 -> Kasvu
B71: =+E!A147 -> 1. Liikevaihdon kasvu-% | D71: =+E!E147 -> 5 | E71: =+E!F147 -> 5 | F71: =+E!G147 -> 5 | G71: =+E!H147 -> 5
B72: =+E!A148 -> 2. Taseen loppusumman kasvu-% | D72: =+E!E148 -> -15.98135977 | E72: =+E!F148 -> -10.3668854 | F72: =+E!G148 -> -11.55663206 | G72: =+E!H148 -> -6.675886816
B73: =+E!A149 -> 3. Tilikauden tuloksen kasvu-% | D73: =+E!E149 -> -30.08571429 | E73: =+E!F149 -> -76.09370658 | F73: =+E!G149 -> -197.2768749 | G73: =+E!H149 -> 1250.82891
B75: =+E!A151 -> Kannattavuus
B76: =+E!A152 -> 1. Käyttökate / Liikevaihto (%) | C76: =+E!D152 -> 17.04980843 | D76: =+E!E152 -> 17.30523627 | E76: =+E!F152 -> 17.55579882 | F76: =+E!G152 -> 17.80158875 | G76: =+E!H152 -> 18.04269697
B77: =+E!A153 -> 2. Liiketulos / Liikevaihto (%) | C77: =+E!D153 -> 0.1064282673 | D77: =+E!E153 -> 1.168683736 | E77: =+E!F153 -> 2.477254276 | F77: =+E!G153 -> 3.441070136 | G77: =+E!H153 -> 10.93292249
B78: =+E!A154 -> 3. Tilikauden tulos / Liikevaihto (%) | C78: =+E!D154 -> -3.724989357 | D78: =+E!E154 -> -2.48028543 | E78: =+E!F154 -> -0.5647088692 | F78: =+E!G154 -> 0.5231725144 | G78: =+E!H154 -> 6.730633879
B79: =+E!A155 -> 4. Sijoitetun pääoman tuotto-% | D79: =+E!E155 -> 0.6532577904 | E79: =+E!F155 -> 1.730500921 | F79: =+E!G155 -> 2.815889341 | G79: =+E!H155 -> 10.62141445
B80: =+E!A156 -> 5. Oman pääoman tuotto-% | D80: =+E!E156 -> -97.88 | E80: =+E!F156 -> -1103.749057 | F80: =+E!G156 ->  | G80: =+E!H156 -> 20736.37041
B82: =+E!A158 -> Maksuvalmius
B83: =+E!A159 -> 1. Rahoitustulos / Liikevaihto | C83: =+E!D159 -> 13.2183908 | D83: =+E!E159 -> 13.6562671 | E83: =+E!F159 -> 14.51383567 | F83: =+E!G159 -> 14.88369113 | G83: =+E!H159 -> 13.84040835
B84: =+E!A160 -> 2. Quick ratio | C84: =+E!D160 -> 1.435 | D84: =+E!E160 -> 0.2646419777 | E84: =+E!F160 -> 0.1428779617 | F84: =+E!G160 -> 0.1031557748 | G84: =+E!H160 -> 0.08196118527
B86: =+E!A162 -> Vakavaraisuus
B87: =+E!A163 -> 1. Omavaraisuusaste | C87: =+E!D163 -> 1.416430595 | D87: =+E!E163 -> 0.03574007926 | E87: =+E!F163 -> -0.400232336 | F87: =+E!G163 -> 0.03153329192 | G87: =+E!H163 -> 6.961829756
B88: =+E!A164 -> 2. Rahoitustulos / Velat (%) | C88: =+E!D164 -> 7.137931034 | D88: =+E!E164 -> 9.088646174 | E88: =+E!F164 -> 11.26627231 | F88: =+E!G164 -> 13.77540591 | G88: =+E!H164 -> 15.48602506
B90: Rahoitusriski: Taipumus kuulua konkurssiyritysten (1) tai toimivien yritysten (0) joukkoon
B91: =+E!A167 -> 1. Kolmen muuttujan P-luku | C91: =+E!D167 -> 0.649446577 | D91: =+E!E167 -> 0.6671118798 | E91: =+E!F167 -> 0.6688737656 | F91: =+E!G167 -> 0.6658086569 | G91: =+E!H167 -> 0.625610208
B94: TULKINTARAPORTTI
C96: =+C4 -> Ennakoidut viisi vuotta:
C97: 1 | D97: 2 | E97: 3 | F97: 4 | G97: 5
B98: Kannattavuus
B99: Käyttökate / Myyntituotot (%) | C99: =+IF(C76>0,"Positiivinen","Negatiivinen") -> Positiivinen | D99: =+IF(D76>0,"Positiivinen","Negatiivinen") -> Positiivinen | E99: =+IF(E76>0,"Positiivinen","Negatiivinen") -> Positiivinen | F99: =+IF(F76>0,"Positiivinen","Negatiivinen") -> Positiivinen | G99: =+IF(G76>0,"Positiivinen","Negatiivinen") -> Positiivinen
B100: Sijoitetun pääoman tuotto-% | D100: =+IF(D79>15,"Erinomainen",IF(D79>10,"Hyvä",IF(D79>6,"Tyydyttävä",IF(D79>3,"Välttävä","Heikko")))) -> Heikko | E100: =+IF(E79>15,"Erinomainen",IF(E79>10,"Hyvä",IF(E79>6,"Tyydyttävä",IF(E79>3,"Välttävä","Heikko")))) -> Heikko | F100: =+IF(F79>15,"Erinomainen",IF(F79>10,"Hyvä",IF(F79>6,"Tyydyttävä",IF(F79>3,"Välttävä","Heikko")))) -> Heikko | G100: =+IF(G79>15,"Erinomainen",IF(G79>10,"Hyvä",IF(G79>6,"Tyydyttävä",IF(G79>3,"Välttävä","Heikko")))) -> Hyvä
B101: Oman pääoman tuotto-% | D101: =+IF(D80="","",IF(D80>20,"Erinomainen",IF(D80>15,"Hyvä",IF(D80>10,"Tyydyttävä",IF(D80>5,"Välttävä","Heikko"))))) -> Heikko | E101: =+IF(E80="","",IF(E80>20,"Erinomainen",IF(E80>15,"Hyvä",IF(E80>10,"Tyydyttävä",IF(E80>5,"Välttävä","Heikko"))))) -> Heikko | G101: Erinomainen
B103: Maksuvalmius
B104: Rahoitustulos / Myyntituotot | C104: =+IF(C83>0,"Positiivinen","Negatiivinen") -> Positiivinen | D104: =+IF(D83>0,"Positiivinen","Negatiivinen") -> Positiivinen | E104: =+IF(E83>0,"Positiivinen","Negatiivinen") -> Positiivinen | F104: =+IF(F83>0,"Positiivinen","Negatiivinen") -> Positiivinen | G104: =+IF(G83>0,"Positiivinen","Negatiivinen") -> Positiivinen
B105: Quick ratio | C105: =+IF(C84>1.5,"Erinomainen",IF(C84>1,"Hyvä",IF(C84>0.5,"Tyydyttävä",IF(C84>0.3,"Välttävä","Heikko")))) -> Hyvä | D105: =+IF(D84>1.5,"Erinomainen",IF(D84>1,"Hyvä",IF(D84>0.5,"Tyydyttävä",IF(D84>0.3,"Välttävä","Heikko")))) -> Heikko | E105: =+IF(E84>1.5,"Erinomainen",IF(E84>1,"Hyvä",IF(E84>0.5,"Tyydyttävä",IF(E84>0.3,"Välttävä","Heikko")))) -> Heikko | F105: =+IF(F84>1.5,"Erinomainen",IF(F84>1,"Hyvä",IF(F84>0.5,"Tyydyttävä",IF(F84>0.3,"Välttävä","Heikko")))) -> Heikko | G105: =+IF(G84>1.5,"Erinomainen",IF(G84>1,"Hyvä",IF(G84>0.5,"Tyydyttävä",IF(G84>0.3,"Välttävä","Heikko")))) -> Heikko
B107: Vakavaraisuus
B108: Omavaraisuusaste | C108: =+IF(C87>50,"Erinomainen",IF(C87>35,"Hyvä",IF(C87>25,"Tyydyttävä",IF(C87>15,"Välttävä","Heikko")))) -> Heikko | D108: =+IF(D87>50,"Erinomainen",IF(D87>35,"Hyvä",IF(D87>25,"Tyydyttävä",IF(D87>15,"Välttävä","Heikko")))) -> Heikko | E108: Heikko | F108: Heikko | G108: Heikko
B109: Rahoitustulos / Velat (%) | C109: =+IF(1/(C88/100)<1,"Erinomainen",IF(1/(C88/100)<3,"Hyvä",IF(1/(C88/100)<5,"Tyydyttävä",IF(1/(C88/100)<10,"Välttävä","Heikko")))) -> Heikko | D109: =+IF(1/(D88/100)<1,"Erinomainen",IF(1/(D88/100)<3,"Hyvä",IF(1/(D88/100)<5,"Tyydyttävä",IF(1/(D88/100)<10,"Välttävä","Heikko")))) -> Heikko | E109: Välttävä | F109: Välttävä | G109: Välttävä
B111: Rahoitusriski
B112: Kolmen muuttujan P-luku | C112: =+IF(C91>0.65,"Erittäin suuri riski",IF(C91>0.45,"Suuri riski",IF(C91>0.25,"Kohtuullinen riski",IF(C91>0.1,"Suhteellisen pieni riski","Pieni riski")))) -> Suuri riski | D112: =+IF(D91>0.65,"Erittäin suuri riski",IF(D91>0.45,"Suuri riski",IF(D91>0.25,"Kohtuullinen riski",IF(D91>0.1,"Suhteellisen pieni riski","Pieni riski")))) -> Erittäin suuri riski | E112: Erittäin suuri riski | F112: Erittäin suuri riski | G112: Suuri riski
B115: LIITEKUVIOT
J116: Vuosi | K116: 1 | L116: 2 | M116: 3 | N116: 4 | O116: 5
J117: Käyttökate | K117: =+C25 -> 26700 | L117: =+D25 -> 28455 | M117: =+E25 -> 30310.35 | N117: =+F25 -> 32271.4455 | O117: =+G25 -> 34343.96312
J118: Liiketulos | K118: =+C32 -> 166.6666667 | L118: =+D32 -> 1921.666667 | M118: =+E32 -> 4277.016667 | N118: =+F32 -> 6238.112167 | O118: =+G32 -> 20810.62978
J119: Tilikauden tulos | K119: =+C35 -> -5833.333333 | L119: =+D35 -> -4078.333333 | M119: =+E35 -> -974.9783333 | N119: =+F35 -> 948.4284533 | O119: =+G35 -> 12811.64574
J137: Vuosi | K137: 1 | L137: 2 | M137: 3 | N137: 4 | O137: 5
J138: Sijoitetun pääoman tuotto-% | L138: =+D79 -> 0.6532577904 | M138: =+E79 -> 1.730500921 | N138: =+F79 -> 2.815889341 | O138: =+G79 -> 10.62141445
J139: Quick ratio | K139: =+C84 -> 1.435 | L139: =+D84 -> 0.2646419777 | M139: =+E84 -> 0.1428779617 | N139: =+F84 -> 0.1031557748 | O139: =+G84 -> 0.08196118527
J140: Omavaraisuusaste | K140: =+C87 -> 1.416430595 | L140: 0.03574007926 | M140: -0.400232336 | N140: 0.03153329192 | O140: 6.961829756
J157: Vuosi | K157: 1 | L157: 2 | M157: 3 | N157: 4 | O157: 5
J158: Rahoitusriski | K158: =+C91 -> 0.649446577 | L158: =+D91 -> 0.6671118798 | M158: 0.6688737656 | N158: 0.6658086569 | O158: 0.625610208
J159: Kriittinen taso | K159: 0.5 | L159: 0.5 | M159: 0.5 | N159: 0.5 | O159: 0.5
